bitfinex/quotes_ETHUSD_20241104
["timestamp","ask_amount","ask_price","bid_price","bid_amount"]
[1730710392304,0.7562,2456.7,2456.0,0.47027908]
[1730710392640,0.7562,2456.7,2455.8,0.5495]
[1730710392641,4.07117,2456.3,2455.8,0.5495]
[1730710393230,4.07108,2456.4,2455.8,0.5495]
[1730710394402,4.07108,2456.4,2455.9,0.08142727]
[1730710394602,4.07129,2456.3,2455.8,0.5495]
[1730710394839,4.07123,2456.3,2455.8,0.5495]
[1730710397302,4.82677,2456.7,2455.9,0.5495]
[1730710397515,4.07075,2456.6,2456.0,0.462148]
[1730710397719,4.07075,2456.6,2455.9,0.5495]
[1730710398233,4.07052,2456.7,2455.9,0.5495]
[1730710398563,4.07034,2456.8,2456.1,0.5495]
[1730710399123,8.1408,2456.8,2456.1,0.5495]
[1730710399441,4.07034,2456.8,2456.1,0.5495]
[1730710399626,4.07065,2456.7,2456.1,0.5495]
[1730710400359,4.07068,2456.6,2456.1,0.5495]
[1730710400671,4.0713,2456.3,2455.6,0.5495]
[1730710400840,4.07161,2456.1,2455.6,0.5495]
[1730710401041,4.07134,2456.2,2455.6,0.5495]
[1730710401344,8.14277,2456.2,2455.6,0.5495]
[1730710401569,4.07134,2456.2,2455.6,0.5495]
[1730710402059,8.14281,2456.2,2455.6,0.5495]
[1730710402265,4.07149,2456.1,2455.6,0.5495]
[1730710402835,4.07134,2456.2,2455.6,0.5495]
[1730710403157,4.07115,2456.4,2455.6,0.5495]
[1730710403470,4.07152,2456.1,2455.6,0.5495]
[1730710405140,4.82456,2456.2,2455.6,0.5495]
[1730710405337,8.89597,2456.2,2455.6,0.5495]
[1730710405577,4.07141,2456.2,2455.6,0.5495]
[1730710405756,4.07151,2456.1,2455.6,0.5495]
[1730710406577,4.07187,2455.9,2455.6,0.5495]
[1730710406778,4.68993728,2456.1,2455.3,0.5495]
[1730710406939,4.07205,2455.8,2455.3,0.5495]
[1730710408283,4.07233,2455.6,2455.3,0.5495]
[1730710408741,4.07227,2455.7,2455.3,0.5495]
[1730710408943,4.07191,2455.9,2455.3,0.5495]
[1730710409168,4.07203,2455.8,2455.3,0.5495]
[1730710409552,4.07216,2455.7,2455.3,0.5495]
[1730710410048,8.14442,2455.7,2455.3,0.5495]
[1730710410444,4.07204,2455.8,2455.3,0.5495]
[1730710410886,4.07215,2455.7,2455.3,0.5495]
[1730710411377,4.07202,2455.8,2455.3,0.5495]
[1730710412083,8.1432,2456.1,2455.5,0.5495]
[1730710412246,4.07126,2456.3,2455.5,0.5495]
[1730710412448,4.0714,2456.2,2455.6,1.01985325]
[1730710412662,4.0714,2456.2,2455.6,0.5495]
[1730710413073,4.07114,2456.4,2455.6,0.5495]
[1730710413298,4.07116,2456.3,2455.6,0.5495]
[1730710413495,4.07136,2456.2,2455.6,0.5495]
[1730710414291,4.07116,2456.3,2455.6,0.5495]
[1730710414459,4.07134,2456.2,2455.7,0.462197]
[1730710414662,4.07134,2456.2,2455.6,0.5495]
[1730710414902,4.07116,2456.3,2455.6,0.5495]
[1730710415095,8.14242,2456.3,2455.6,0.5495]
[1730710415393,4.07117,2456.3,2455.6,0.5495]
[1730710415694,4.66720784,2456.7,2455.6,0.5495]
[1730710415695,4.07064,2456.7,2455.7,0.5495]
[1730710415996,4.07066,2456.6,2455.9,0.5495]
[1730710416210,4.07052,2456.7,2455.9,4.07181]
[1730710416412,4.07052,2456.7,2456.1,0.5495]
[1730710416710,0.7606,2456.9,2456.1,0.5495]
[1730710416711,4.07083,2456.5,2456.1,0.5495]
[1730710416914,4.07099,2456.4,2455.9,0.5495]
[1730710417427,8.14211,2456.4,2455.9,0.5495]
[1730710417708,4.07116,2456.3,2455.9,0.5495]
[1730710418100,4.07116,2456.3,2455.9,0.795195]
[1730710418273,4.07116,2456.3,2456.0,1.76129327]
[1730710418471,0.7606,2456.7,2456.1,0.70584998]
[1730710418712,4.07123,2456.3,2455.9,1.40150667]
[1730710418917,4.07149,2456.1,2456.0,0.70591317]
[1730710419116,4.07142,2456.2,2455.7,0.85200667]
[1730710419412,4.07142,2456.2,2455.8,2.6168979]
[1730710419616,4.07142,2456.2,2455.9,1.76489123]
[1730710419784,4.07142,2456.2,2455.8,0.85200667]
[1730710419785,8.14287,2456.2,2456.0,0.70595649]
[1730710419981,4.07142,2456.2,2455.8,0.85200667]
[1730710420191,4.07142,2456.2,2455.9,1.76491922]
[1730710420390,4.07118,2456.3,2456.1,0.5495]
[1730710421915,4.07132,2456.2,2456.1,0.5495]
[1730710422219,4.07118,2456.3,2456.1,0.5495]
[1730710422723,0.7754,2456.7,2456.1,0.5495]
[1730710422890,4.07093,2456.5,2456.1,0.5495]
[1730710423210,4.07093,2456.5,2456.2,0.70597522]
[1730710423375,4.07093,2456.5,2456.1,0.81745167]
[1730710423582,4.07093,2456.5,2456.2,0.70593782]
[1730710423790,4.07093,2456.5,2456.1,0.81745167]
[1730710424018,4.07044,2456.8,2456.2,1.76480048]
[1730710424336,4.07006,2457.0,2456.4,0.5495]
[1730710424539,4.07006,2457.0,2456.5,0.70562344]
[1730710424832,4.85076,2457.2,2456.5,1.13981531]
[1730710424833,4.06976,2457.2,2456.5,1.13981531]
[1730710425005,4.06984,2457.1,2456.6,1.25508074]
[1730710425205,4.06984,2457.1,2456.6,0.76020874]
[1730710426237,4.06955,2457.3,2456.6,0.76020874]
[1730710426437,4.06955,2457.3,2456.7,0.5495]
[1730710426652,4.06964,2457.3,2456.7,0.5495]
[1730710426937,4.8571,2457.3,2456.7,0.5495]
[1730710427110,4.07032,2456.9,2456.3,0.5495]
[1730710427314,4.07049,2456.8,2456.3,0.5495]
[1730710427511,4.07058,2456.7,2456.3,0.5495]
[1730710429449,4.07094,2456.5,2456.1,0.5495]
[1730710429660,4.07068,2456.6,2456.1,0.5495]
[1730710429954,8.14148,2456.6,2456.1,0.5495]
[1730710430747,7.477579,2456.7,2456.1,0.5495]
[1730710430951,4.07053,2456.7,2456.1,0.5495]
[1730710431859,4.07066,2456.6,2456.1,0.5495]
[1730710432736,8.14149,2456.6,2456.1,0.5495]
[1730710433270,8.14144,2456.6,2456.1,0.5495]
[1730710433451,4.07066,2456.6,2456.1,0.5495]
[1730710433648,4.07047,2456.8,2456.1,0.5495]
[1730710433649,4.07046,2456.8,2456.1,0.5495]
[1730710433995,4.07058,2456.7,2456.1,0.5495]
[1730710434289,4.07067,2456.6,2456.1,0.5495]
[1730710436150,4.07089,2456.5,2456.1,0.5495]
[1730710436364,3.88133728,2456.8,2456.1,0.5495]
[1730710436588,4.07069,2456.6,2456.1,0.5495]
[1730710437288,4.07084,2456.5,2456.1,0.5495]
[1730710437475,4.07101,2456.4,2456.1,0.5495]
[1730710438557,4.07084,2456.5,2456.1,0.5495]
[1730710438752,4.07102,2456.4,2456.1,0.5495]
[1730710439734,4.07084,2456.5,2456.1,0.5495]
[1730710440024,0.814148,2456.5,2456.1,0.5495]
[1730710440244,4.07124,2456.3,2456.1,0.5495]
[1730710440529,4.0708,2456.6,2456.1,0.5495]
[1730710441031,4.0709,2456.5,2456.1,0.5495]
[1730710441690,4.07101,2456.4,2456.1,0.5495]
[1730710442303,4.07118,2456.3,2456.1,0.5495]
[1730710443131,4.07102,2456.4,2456.1,0.5495]
[1730710444745,4.07132,2456.3,2456.1,0.5495]
[1730710444952,4.07132,2456.3,2455.7,0.5495]
[1730710445246,4.0715,2456.1,2455.7,0.5495]
[1730710445823,4.07185,2455.9,2455.7,0.5495]
[1730710445999,4.66273728,2456.2,2455.5,0.5495]
[1730710446205,4.07186,2455.9,2455.5,0.5495]
[1730710446557,4.07162,2456.1,2455.5,0.5495]
[1730710446720,8.14322,2456.1,2455.5,1.01986719]
[1730710447110,4.0716,2456.1,2455.5,1.01986719]
[1730710447431,4.07166,2456.0,2455.5,1.01986719]
[1730710447632,4.07166,2456.0,2455.5,0.5495]
[1730710448219,4.07133,2456.2,2455.6,0.5495]
[1730710448421,4.07094,2456.5,2455.6,4.07222]
[1730710448640,4.07108,2456.4,2455.8,0.5495]
[1730710448799,4.83806,2456.6,2455.8,0.5495]
[1730710449005,4.07073,2456.6,2456.0,0.5495]
[1730710449206,4.07073,2456.6,2456.0,1.01978389]
[1730710449929,4.07054,2456.7,2456.1,0.63091965]
[1730710450837,4.07054,2456.7,2456.1,0.5495]
[1730710451047,4.07022,2456.9,2456.3,0.5495]
[1730710451208,4.0699,2457.1,2456.4,0.5495]
[1730710451403,4.0699,2457.1,2456.6,0.5495]
[1730710451606,8.13988,2457.1,2456.6,0.5495]
[1730710452112,4.0699,2457.1,2456.6,0.5495]
[1730710453431,4.0697,2457.2,2456.6,0.5495]
[1730710453748,4.06985,2457.1,2456.6,0.5495]
[1730710454984,4.06953,2457.3,2456.6,0.5495]
[1730710455282,4.06941,2457.4,2456.8,0.5495]
[1730710455640,7.0691,2457.6,2456.9,0.5495]
[1730710456843,4.06896,2457.7,2456.9,4.07009]
[1730710457042,4.06908,2457.6,2456.9,0.5495]
[1730710457490,4.06862,2457.9,2457.1,0.5495]
[1730710457654,3.88133728,2458.0,2457.1,0.5495]
[1730710457655,0.78,2458.1,2457.3,0.5495]
[1730710457856,4.06853,2457.9,2457.3,0.5495]
[1730710458643,8.13717,2457.9,2457.3,0.5495]
[1730710458873,4.06882,2457.8,2457.3,0.5495]
[1730710459265,4.06853,2457.9,2457.3,0.5495]
[1730710460277,4.06842,2458.0,2457.3,0.5495]
[1730710460482,4.06856,2457.9,2457.4,0.5081067]
[1730710460640,4.06856,2457.9,2457.3,0.5495]
[1730710461277,4.06876,2457.8,2457.3,0.5495]
[1730710462186,4.06856,2457.9,2457.3,0.5495]
[1730710462561,4.84829,2458.1,2457.3,0.5495]
[1730710462562,4.06829,2458.1,2457.3,0.5495]
[1730710462854,4.06829,2458.1,2457.5,0.5495]
[1730710463986,3.88133728,2458.3,2457.5,0.5495]
[1730710463987,4.0687,2457.8,2457.5,0.5495]
[1730710464479,4.06886,2457.7,2457.5,0.5495]
[1730710464869,4.06901,2457.6,2457.5,0.5495]
[1730710465447,4.06901,2457.6,2456.6,4.93252667]
[1730710465448,4.06921,2457.5,2457.2,0.5495]
[1730710466268,4.06937,2457.4,2457.2,0.5495]
[1730710466640,4.06921,2457.5,2457.2,0.5495]
[1730710466846,4.0695,2457.3,2456.7,0.5495]
[1730710467285,4.06968,2457.2,2456.7,0.5495]
[1730710467460,4.01968,2457.2,2456.8,0.35495]
[1730710467659,4.01968,2457.2,2456.7,0.5495]
[1730710467848,8.08945,2457.2,2456.7,0.5495]
[1730710468186,4.07008,2457.0,2456.7,0.5495]
[1730710468779,4.06986,2457.1,2456.7,0.5495]
[1730710468946,4.06976,2457.2,2456.7,0.5495]
[1730710469188,4.06944,2457.4,2456.7,0.5495]
[1730710469189,4.0695,2457.3,2456.7,0.5495]
[1730710469379,4.0695,2457.3,2456.8,0.462007]
[1730710469568,4.0695,2457.3,2456.7,0.5495]
[1730710470182,4.06974,2457.2,2456.7,0.5495]
[1730710470947,4.06995,2457.1,2456.7,0.5495]
[1730710472186,4.06994,2457.1,2456.7,0.5495]
[1730710472491,4.07005,2457.0,2456.7,0.5495]
[1730710473014,4.07024,2456.9,2456.7,0.5495]
[1730710474198,4.07005,2457.0,2456.7,0.5495]
[1730710474358,4.06985,2457.1,2456.7,0.5495]
[1730710474557,4.07002,2457.0,2456.7,0.5495]
[1730710475459,1.31228073,2457.3,2456.7,0.5495]
[1730710475699,4.07007,2457.0,2456.7,0.5495]
[1730710476186,4.07018,2456.9,2456.7,0.5495]
[1730710476562,4.07007,2457.0,2456.7,0.5495]
[1730710476966,4.07033,2456.8,2456.7,0.5495]
[1730710477262,4.07076,2456.6,2456.3,0.5495]
[1730710477469,4.07049,2456.8,2456.3,0.5495]
[1730710477989,4.07028,2456.9,2456.4,0.08141211]
[1730710478310,4.07033,2456.8,2456.4,0.47021921]
[1730710478476,4.07033,2456.8,2456.3,0.5495]
[1730710480915,4.07074,2456.6,2456.3,0.5495]
[1730710482021,4.07051,2456.7,2456.3,0.5495]
[1730710483213,4.07026,2456.9,2456.4,0.08141195]
[1730710483376,4.07026,2456.9,2456.3,0.5495]
[1730710483576,4.07026,2456.9,2456.4,0.462079]
[1730710483803,8.14054,2456.9,2456.4,0.462079]
[1730710483975,8.14054,2456.9,2456.3,0.5495]
[1730710483976,0.833,2456.9,2456.3,0.5495]
[1730710484176,4.0708,2456.6,2456.3,0.5495]
[1730710484615,8.14157,2456.6,2456.3,0.5495]
[1730710484994,4.07077,2456.6,2456.3,0.5495]
[1730710485794,4.07075,2456.6,2456.3,0.5495]
[1730710486199,8.14151,2456.6,2456.3,0.5495]
[1730710486387,4.07075,2456.6,2456.3,0.5495]
[1730710487885,4.07091,2456.5,2456.3,0.5495]
[1730710488092,4.07099,2456.4,2456.3,0.5495]
[1730710488296,4.07141,2456.2,2456.0,0.5495]
[1730710488501,3.88133728,2456.8,2456.0,0.5495]
[1730710488502,4.07111,2456.4,2456.0,0.5495]
[1730710488696,4.07124,2456.3,2456.0,0.5495]
[1730710489122,4.07134,2456.2,2456.0,0.5495]
[1730710489514,4.07149,2456.1,2456.0,0.5495]
[1730710490100,4.07149,2456.1,2455.7,0.5495]
[1730710490296,4.07176,2456.0,2455.7,0.5495]
[1730710490501,4.07199,2455.9,2455.7,0.5495]
[1730710493495,4.0717,2456.0,2455.7,0.5495]
[1730710494993,4.07183,2455.9,2455.7,0.5495]
[1730710495191,4.0717,2456.0,2455.7,0.5495]
[1730710495394,8.14347,2456.0,2455.7,0.5495]
[1730710495623,4.0717,2456.0,2455.7,0.5495]
[1730710498228,4.07183,2455.9,2455.7,0.5495]
[1730710498603,4.0717,2456.0,2455.7,0.5495]
[1730710498809,8.14349,2456.0,2455.7,0.5495]
[1730710499316,4.0717,2456.0,2455.7,0.5495]
[1730710499830,8.14348,2456.0,2455.7,0.5495]
[1730710500000,4.07184,2455.9,2455.7,0.5495]
[1730710500205,4.07199,2455.8,2455.7,0.5495]
[1730710500411,0.8314,2456.3,2455.7,0.5495]
[1730710500604,4.07167,2456.0,2455.7,0.5495]
[1730710501419,8.14342,2456.0,2455.7,0.5495]
[1730710501631,4.07167,2456.0,2455.7,0.5495]
[1730710501829,4.07186,2455.9,2455.7,0.5495]
[1730710502849,4.07166,2456.0,2455.7,0.5495]
[1730710503050,4.07143,2456.2,2455.7,0.5495]
[1730710503349,4.07142,2456.2,2455.7,1.011699]
[1730710503647,4.07156,2456.1,2455.7,1.011699]
[1730710504843,4.07168,2456.0,2455.7,0.5495]
[1730710505051,0.7872,2456.5,2455.5,0.5495]
[1730710505052,4.07199,2455.8,2455.5,0.5495]
[1730710507255,4.07186,2455.9,2455.5,0.5495]
[1730710507409,4.07206,2455.8,2455.5,0.5495]
[1730710507609,4.07206,2455.8,2455.5,0.90445]
[1730710508845,4.65913728,2456.1,2455.3,0.5495]
[1730710509050,4.07249,2455.5,2455.3,0.5495]
[1730710509345,4.07249,2455.5,2455.1,0.61059654]
[1730710510549,4.07274,2455.4,2455.1,0.61059654]
[1730710510756,4.07284,2455.3,2455.1,0.06109654]
[1730710511052,3.88133728,2455.8,2455.1,0.06109654]
[1730710511053,4.07235,2455.6,2455.1,0.06109654]
[1730710511355,4.07235,2455.6,2455.2,0.5495]
[1730710511556,4.07235,2455.6,2455.2,1.01788465]
[1730710511860,8.14479,2455.6,2455.2,1.01788465]
[1730710512039,4.07235,2455.6,2455.2,1.01788465]
[1730710512241,4.0718,2456.0,2455.4,0.5495]
[1730710512556,0.7643,2456.1,2455.6,0.5495]
[1730710512557,4.07156,2456.1,2455.6,0.5495]
[1730710512729,4.07156,2456.1,2455.7,0.47034197]
[1730710513441,4.07134,2456.2,2455.8,0.08143636]
[1730710513642,4.07125,2456.3,2455.8,0.5495]
[1730710513827,4.07092,2456.5,2455.8,4.62141]
[1730710514151,4.07107,2456.4,2455.8,4.62141]
[1730710514449,4.07092,2456.5,2455.9,0.59059773]
[1730710514658,4.07107,2456.4,2455.9,0.5091752]
[1730710514826,4.07149,2456.1,2455.9,0.5091752]
[1730710515025,4.07149,2456.1,2455.8,0.5495]
[1730710516049,4.07149,2456.1,2455.6,0.5495]
[1730710516050,4.07184,2455.9,2455.6,0.5495]
[1730710516347,0.7584,2456.1,2455.6,0.5495]
[1730710516561,4.07141,2456.2,2455.6,0.5495]
[1730710516713,4.07141,2456.2,2455.7,0.57598786]
[1730710516714,8.14285,2456.2,2455.7,0.57598786]
[1730710516915,4.07141,2456.2,2455.7,0.57598786]
[1730710517135,4.82929,2456.5,2455.8,4.70280822]
[1730710517323,4.07107,2456.4,2455.8,4.62138]
[1730710518449,4.07107,2456.4,2455.9,4.07181]
[1730710518750,4.07085,2456.5,2456.1,0.5495]
[1730710518959,4.07068,2456.6,2456.1,0.5495]
[1730710519361,8.14148,2456.6,2456.1,0.5495]
[1730710519531,8.14148,2456.6,2456.2,0.5083161]
[1730710520150,4.07068,2456.6,2456.2,0.5083161]
[1730710520344,4.07042,2456.8,2456.3,0.5495]
[1730710520661,4.06953,2457.3,2456.5,0.5495]
[1730710520861,4.06986,2457.1,2456.7,0.5495]
[1730710521364,4.0696,2457.3,2456.7,4.61998]
[1730710521520,4.06952,2457.3,2456.9,0.5495]
[1730710521957,4.06975,2457.2,2456.9,0.5495]
[1730710522118,4.06982,2457.2,2456.9,0.5495]
[1730710522317,4.06997,2457.1,2456.9,0.5495]
[1730710522534,4.06997,2457.1,2456.7,0.5495]
[1730710522751,4.07008,2457.0,2456.7,0.5495]
[1730710523460,4.06977,2457.2,2456.7,0.5495]
[1730710523666,4.07008,2457.0,2456.7,0.5495]
[1730710523861,0.7793,2457.3,2456.4,4.07092]
[1730710523862,4.84885,2457.3,2456.4,0.5495]
[1730710524327,4.07026,2456.9,2456.4,0.5495]
[1730710524528,4.07026,2456.9,2456.5,0.462053]
[1730710526463,8.14054,2456.9,2456.4,0.5495]
[1730710526620,4.07041,2456.8,2456.4,0.5495]
[1730710527334,4.07026,2456.9,2456.4,0.5495]
[1730710527536,8.14057,2456.9,2456.4,0.5495]
[1730710527746,8.14057,2456.9,2456.4,1.718687]
[1730710528060,4.07026,2456.9,2456.4,1.718687]
[1730710530455,4.07026,2456.9,2456.4,5.789677]
[1730710530662,4.84882,2457.3,2456.4,5.789677]
[1730710530663,4.06967,2457.2,2456.5,4.62026]
[1730710530861,8.14013,2457.0,2456.5,0.95754316]
[1730710531161,0.7793,2457.3,2456.5,0.95754316]
[1730710531162,7.83511,2457.6,2456.6,4.62009]
[1730710531468,4.06957,2457.3,2456.7,4.61983]
[1730710531623,4.06921,2457.5,2457.0,4.0699]
[1730710531958,4.06892,2457.7,2457.2,4.06965]
[1730710532172,4.06859,2457.9,2457.3,0.5495]
[1730710532463,4.06859,2457.9,2457.3,4.61888]
[1730710532626,4.06819,2458.1,2457.6,4.06894]
[1730710532821,4.06822,2458.1,2457.5,0.5495]
[1730710533055,4.06842,2458.0,2457.6,0.44308373]
[1730710534376,4.0682,2458.1,2457.6,4.51208373]
[1730710534671,4.06816,2458.2,2457.6,4.51208373]
[1730710534970,4.0682,2458.1,2457.6,4.51208373]
[1730710535652,4.06801,2458.2,2457.7,4.06884]
[1730710535975,4.06786,2458.3,2457.8,4.61817]
[1730710536169,4.06811,2458.2,2457.8,0.5495]
[1730710536332,4.06787,2458.3,2457.8,4.61816]
[1730710536534,4.06787,2458.3,2457.9,0.62798806]
[1730710536739,8.13585,2458.3,2457.9,0.62798806]
[1730710536941,4.06787,2458.3,2457.9,0.62798806]
[1730710537372,4.06803,2458.2,2457.9,0.62798806]
[1730710539072,4.06787,2458.3,2457.9,0.62798806]
[1730710539246,4.06776,2458.4,2457.9,0.62798806]
[1730710539447,4.06776,2458.4,2458.1,0.5495]
[1730710539768,4.06776,2458.4,2458.1,0.63085361]
[1730710540370,4.06794,2458.3,2458.1,0.5495]
[1730710541454,4.06801,2458.2,2458.1,0.5495]
[1730710542844,4.06787,2458.3,2458.1,0.5495]
[1730710543568,0.0608995,2458.5,2457.7,0.55]
[1730710543777,4.06884,2457.7,2457.6,0.5495]
[1730710544067,3.21989237,2457.7,2457.6,0.5495]
[1730710544377,4.06851,2457.9,2457.8,0.37839803]
[1730710544784,4.06872,2457.8,2457.6,0.5495]
[1730710545171,4.06847,2458.0,2457.6,0.5495]
[1730710546093,4.06847,2458.0,2457.7,0.461867]
[1730710546289,4.06818,2458.1,2457.7,0.461867]
[1730710546450,4.06859,2457.9,2457.6,0.5495]
[1730710547185,4.06836,2458.0,2457.7,0.3786312]
[1730710547346,4.06822,2458.1,2457.8,0.45999805]
[1730710547548,4.06822,2458.1,2457.9,0.3786312]
[1730710547761,4.06822,2458.1,2458.0,0.3786312]
[1730710548279,4.06796,2458.3,2458.0,0.3786312]
[1730710548483,0.8313,2458.4,2458.1,0.3786312]
[1730710548484,4.06772,2458.4,2458.1,0.3786312]
[1730710548688,0.0608995,2458.5,2457.9,0.5495]
[1730710548689,4.06795,2458.3,2458.2,0.3786312]
[1730710549054,4.06775,2458.4,2457.9,4.61798]
[1730710549254,4.06775,2458.4,2458.2,0.37909579]
[1730710549683,4.06775,2458.4,2458.3,0.37909579]
[1730710552885,4.1284595,2458.5,2458.3,0.92859579]
[1730710553087,0.0608995,2458.5,2458.3,0.92859579]
[1730710553254,0.0608995,2458.5,2458.4,1.13730321]
[1730710553456,0.0608995,2458.5,2458.4,1.71278153]
[1730710553457,4.1284195,2458.5,2458.4,1.71278153]
[1730710553654,4.1284195,2458.5,2458.4,1.13730321]
[1730710553854,0.0608995,2458.5,2458.4,1.13730321]
[1730710555255,4.1284195,2458.5,2458.4,1.13730321]
[1730710555594,4.1284195,2458.5,2458.4,0.37909579]
[1730710556194,4.06768,2458.4,2458.1,0.5495]
[1730710556370,4.06768,2458.4,2458.2,1.13788504]
[1730710556568,4.06768,2458.4,2458.3,1.36984198]
[1730710556780,4.1285595,2458.5,2458.3,1.36984198]
[1730710556981,4.1285595,2458.5,2458.4,1.13788504]
[1730710559766,4.1285595,2458.5,2458.1,0.5495]
[1730710560094,4.06793,2458.3,2458.2,1.77281365]
[1730710561209,4.06793,2458.3,2458.2,1.13966616]
[1730710561373,4.06793,2458.3,2458.2,1.77398271]
[1730710561571,4.06793,2458.3,2457.9,4.61793]
[1730710561911,4.06793,2458.3,2458.0,1.60353555]
[1730710562074,4.06793,2458.3,2458.1,0.38058085]
[1730710562413,4.1285595,2458.5,2458.2,1.14174255]
[1730710562574,4.06768,2458.4,2458.3,1.69124255]
[1730710563013,4.06768,2458.4,2458.3,1.14174255]
[1730710563415,4.1285595,2458.5,2458.3,1.14174255]
[1730710563616,0.0608995,2458.5,2458.4,1.14174255]
[1730710563790,4.1284195,2458.5,2458.4,1.14174255]
[1730710564913,4.1284195,2458.5,2458.4,1.77630049]
[1730710566610,4.1284195,2458.5,2458.4,1.14174255]
[1730710567179,4.1284195,2458.5,2458.4,1.77636917]
[1730710567380,4.1284195,2458.5,2458.4,1.14174255]
[1730710568221,4.1284195,2458.5,2458.4,1.77638458]
[1730710571128,4.1284195,2458.5,2458.4,1.14174255]
[1730710571526,4.1284195,2458.5,2458.4,1.77638458]
[1730710571899,4.1284195,2458.5,2458.4,1.14174255]
[1730710572091,4.1284195,2458.5,2458.4,1.77639634]
[1730710572323,4.1284195,2458.5,2458.4,1.14174255]
[1730710572904,4.9049195,2458.5,2458.4,1.14174255]
[1730710573613,5.80216045,2458.5,2458.4,1.14174255]
[1730710573817,5.80216045,2458.5,2458.4,0.38058085]
[1730710573993,4.06851,2457.9,2457.8,0.85200667]
[1730710574362,4.06851,2457.9,2457.8,1.99494614]
[1730710574517,4.06851,2457.9,2457.8,1.23298649]
[1730710574905,4.06851,2457.9,2457.8,1.70943747]
[1730710575205,4.9050195,2458.5,2457.8,1.70943747]
[1730710575522,4.06796,2458.3,2457.9,0.5495]
[1730710575711,4.06796,2458.3,2457.9,0.63085979]
[1730710575918,0.8373995,2458.5,2457.9,1.25349843]
[1730710576125,4.06783,2458.4,2458.0,1.28383506]
[1730710576336,4.06793,2458.3,2458.0,1.63664663]
[1730710576706,4.06818,2458.1,2458.0,0.57985294]
[1730710576995,4.06805,2458.2,2458.0,1.28442878]
[1730710577191,4.06789,2458.3,2458.0,0.57985294]
[1730710577388,4.06789,2458.3,2458.1,1.22607323]
[1730710577639,0.0608995,2458.5,2458.2,0.5495]
[1730710577790,0.0608995,2458.5,2458.3,0.70510473]
[1730710578219,0.0608995,2458.5,2458.2,4.61745]
[1730710578417,0.0608995,2458.5,2458.3,1.76314264]
[1730710578669,0.0608995,2458.5,2458.4,0.47645098]
[1730710578820,0.0608995,2458.5,2458.4,8.3401057]
[1730710579016,0.0608995,2458.5,2458.4,7.40675597]
[1730710579220,0.0608995,2458.5,2458.4,10.48808942]
[1730710579420,0.0608995,2458.5,2458.4,13.94886787]
[1730710579927,0.0608995,2458.5,2458.4,13.94805141]
[1730710580167,0.0608995,2458.5,2458.4,13.94807008]
[1730710580317,0.0608995,2458.5,2458.4,11.81706535]
[1730710580520,0.0608995,2458.5,2458.4,13.52136652]
[1730710580924,0.0608995,2458.5,2458.4,13.53136652]
[1730710581426,0.0608995,2458.5,2458.4,13.95807008]
[1730710582135,4.06572,2459.6,2458.8,0.5495]
[1730710582336,0.8291995,2459.7,2459.2,4.61574]
[1730710582337,4.1265495,2459.7,2459.2,4.61574]
[1730710582550,4.1265495,2459.7,2459.3,0.57985294]
[1730710582871,4.06578,2459.6,2459.3,0.57985294]
[1730710583218,0.0608995,2459.7,2459.3,4.64591294]
[1730710583418,0.0608995,2459.7,2459.4,0.55]
[1730710583624,4.1264995,2459.7,2459.4,0.55]
[1730710583824,4.1264995,2459.7,2459.5,0.461618]
[1730710584872,0.0608995,2459.7,2459.6,0.5495]
[1730710585457,4.1264295,2459.7,2459.5,0.461618]
[1730710586675,0.0608995,2459.7,2459.5,0.461618]
[1730710587655,4.1264295,2459.7,2459.5,0.461618]
[1730710587867,4.1264295,2459.7,2459.4,0.55]
[1730710588286,4.1264295,2459.7,2459.3,0.5495]
[1730710588483,0.0608995,2459.7,2459.3,0.5495]
[1730710588786,4.1264495,2459.7,2459.3,4.61558]
[1730710588941,4.06576,2459.6,2459.3,0.5495]
[1730710589147,4.06602,2459.5,2459.1,3.5495]
[1730710589487,0.8514995,2459.7,2459.4,0.5495]
[1730710589488,0.0608995,2459.7,2459.4,0.5495]
[1730710589871,4.1264995,2459.7,2459.4,0.5495]
[1730710590062,0.8129,2459.6,2458.9,0.85171088]
[1730710590262,4.87868,2459.6,2459.2,4.61585]
[1730710590487,8.94449,2459.6,2459.3,0.461585]
[1730710590796,4.87868,2459.6,2459.3,0.461585]
[1730710590946,4.1264595,2459.7,2459.3,0.461585]
[1730710591375,4.06582,2459.6,2459.3,0.461585]
[1730710592274,0.0608995,2459.7,2459.4,0.55]
[1730710592589,0.0608995,2459.7,2459.4,4.06602]
[1730710592763,0.0608995,2459.7,2459.5,0.4527605]
[1730710594453,0.0608995,2459.7,2459.6,0.5495]
[1730710595594,0.0608995,2459.7,2459.6,5.24650401]
[1730710595891,4.06489,2460.1,2459.7,4.61551]
[1730710596097,4.06489,2460.1,2459.8,0.66288466]
[1730710596996,4.06472,2460.2,2459.8,4.72825466]
[1730710597559,4.0649,2460.1,2459.8,0.66288466]
[1730710597962,4.06472,2460.2,2459.8,0.66288466]
[1730710598171,4.06472,2460.2,2459.8,4.72824466]
[1730710598370,4.06472,2460.2,2459.9,0.461585]
[1730710598861,8.12956,2460.2,2459.9,0.461585]
[1730710599266,4.06472,2460.2,2459.9,0.461585]
[1730710599466,8.12958,2460.2,2459.9,0.461585]
[1730710599863,0.8096,2460.3,2459.9,0.461585]
[1730710599864,4.06489,2460.1,2459.9,0.461585]
[1730710600091,4.06489,2460.1,2459.7,0.55]
[1730710600304,0.8096,2460.3,2459.6,3.5495]
[1730710600510,0.8096,2460.3,2459.6,0.5495]
[1730710600511,4.06528,2459.9,2459.6,0.5495]
[1730710601221,4.06496,2460.1,2459.6,0.5495]
[1730710601222,4.06513,2460.0,2459.6,0.5495]
[1730710601419,4.06513,2460.0,2459.7,0.461527]
[1730710601622,4.06522,2459.9,2459.7,0.461527]
[1730710601778,4.06522,2459.9,2459.6,0.5495]